Departmental family,Entity,Date Paid,Expense type,Expense Area,Supplier,Transaction Number, Amount , Description , Supplier Type , Expenditure Type ,
UK Statistics Authority,Office for National Statistics,01 March 2019,ICT Outsourcing and Maintenance/Support,Digital Services and Technology,Crown Hosting Data Centres Limited,126466," 40,324.69 ", Information Management Services , SME , Programme ,
UK Statistics Authority,Office for National Statistics,01 March 2019,ICT Outsourcing and Maintenance/Support,Digital Services and Technology,Crown Hosting Data Centres Limited,126466, 860.00 , Information Management Services , SME , Programme ,
UK Statistics Authority,Office for National Statistics,01 March 2019,ICT Outsourcing and Maintenance/Support,Digital Services and Technology,Crown Hosting Data Centres Limited,126466," 17,974.22 ", Information Management Services , SME , Programme ,
UK Statistics Authority,Office for National Statistics,01 March 2019,Telecommunications,Digital Services and Technology,Crown Hosting Data Centres Limited,126466," 1,720.01 ", Information Management Services , SME , Programme ,
UK Statistics Authority,Office for National Statistics,01 March 2019,IT Contractual Services,Digital Services and Technology,E Synergy Solutions,126469," 5,280.00 ", Information Management Services , SME , Programme ,
UK Statistics Authority,Office for National Statistics,01 March 2019,IT Contractual Services,Digital Services and Technology,E Synergy Solutions,126469," 17,160.00 ", Information Management Services , SME , Programme ,
UK Statistics Authority,Office for National Statistics,01 March 2019,IT Contractual Services,Digital Services and Technology,E Synergy Solutions,126469," 83,112.00 ", Information Management Services , SME , Programme ,
UK Statistics Authority,Office for National Statistics,01 March 2019,IT Contractual Services,Digital Services and Technology,E Synergy Solutions,126469," 32,029.46 ", Information Management Services , SME , Programme ,
UK Statistics Authority,Office for National Statistics,01 March 2019,Incentive Payments,"Public, Population and Policy - Operations",Park Retail Ltd,126470," 37,336.08 ", Social Surveys Incentive Vouchers, Large , Programme ,
UK Statistics Authority,Office for National Statistics,01 March 2019,Incentive Payments,"Public, Population and Policy - Operations",Park Retail Ltd,126470," 2,853.46 ", Social Surveys Incentive Vouchers, Large , Programme ,
UK Statistics Authority,Office for National Statistics,01 March 2019,Performance Related Pay - Voucher Payments,ONS Corporate Funds,Park Retail Ltd,126470," 2,323.18 ", Performance Realated Pay Vouchers, Large , Programme ,
UK Statistics Authority,Office for National Statistics,01 March 2019,Travel and Subsistence,"Finance, Planning and Performance",Corporate Travel Management ,126475," 61,826.30 ", Travel and Accommodation Booking Service , SME , Programme ,
UK Statistics Authority,Office for National Statistics,01 March 2019,IT Contractual Services,Digital Services and Technology,Methods Business & Digital Technology Ltd,126478," 96,960.00 ", Information Management Services , Large , Programme ,
UK Statistics Authority,Office for National Statistics,01 March 2019,IT Contractual Services,Digital Services and Technology,Methods Business & Digital Technology Ltd,126478," 18,000.00 ", Information Management Services , Large , Programme ,
UK Statistics Authority,Office for National Statistics,01 March 2019,IT Contractual Services,Digital Services and Technology,Methods Business & Digital Technology Ltd,126478," 18,900.00 ", Information Management Services , Large , Programme ,
UK Statistics Authority,Office for National Statistics,01 March 2019,IT Contractual Services,Digital Services and Technology,Methods Business & Digital Technology Ltd,126478," 6,630.00 ", Information Management Services , Large , Programme ,
UK Statistics Authority,Office for National Statistics,01 March 2019,IT Contractual Services,Digital Services and Technology,Methods Business & Digital Technology Ltd,126478," 133,830.00 ", Information Management Services , Large , Programme ,
UK Statistics Authority,Office for National Statistics,01 March 2019,Contractors,Economic Statistics Transformation,Certes Computing Ltd,126479," 8,326.50 ", Information Management Services , SME , Programme ,
UK Statistics Authority,Office for National Statistics,01 March 2019,Contractors,"Public, Population and Policy - Transformation",Certes Computing Ltd,126479," 10,709.16 ", Information Management Services , SME , Programme ,
UK Statistics Authority,Office for National Statistics,01 March 2019,Contractors,"Public, Population and Policy - Transformation",Certes Computing Ltd,126479," 12,040.80 ", Information Management Services , SME , Programme ,
UK Statistics Authority,Office for National Statistics,01 March 2019,Contractors,Digital Services and Technology,LA International,126480," 4,634.40 ", Information Management Services , SME , Programme ,
UK Statistics Authority,Office for National Statistics,01 March 2019,Contractors,Digital Services and Technology,LA International,126480," 1,158.60 ", Information Management Services , SME , Programme ,
UK Statistics Authority,Office for National Statistics,01 March 2019,Contractors,Digital Services and Technology,LA International,126480," 10,764.90 ", Information Management Services , SME , Programme ,
UK Statistics Authority,Office for National Statistics,01 March 2019,Contractors,National Accounts and Economic Statistics,LA International,126480," 5,766.96 ", Information Management Services , SME , Programme ,
UK Statistics Authority,Office for National Statistics,01 March 2019,Contractors,Policy and Communication,LA International,126480," 8,465.86 ", Information Management Services , SME , Programme ,
UK Statistics Authority,Office for National Statistics,01 March 2019,Contractors,"Public, Population and Policy - Operations",LA International,126480," 11,245.50 ", Information Management Services , SME , Programme ,
UK Statistics Authority,Office for National Statistics,01 March 2019,Contractors,"Public, Population and Policy - Transformation",LA International,126480," 3,524.22 ", Information Management Services , SME , Programme ,
UK Statistics Authority,Office for National Statistics,01 March 2019,Contractors,"Public, Population and Policy - Transformation",LA International,126480," 3,524.22 ", Information Management Services , SME , Programme ,
UK Statistics Authority,Office for National Statistics,01 March 2019,IT Contractual Services,Digital Services and Technology,QA Ltd,126483," 67,380.00 ", Information Management Services, Large , Programme ,
UK Statistics Authority,Office for National Statistics,01 March 2019,Furniture > 5K Per Item,People and Business Services,Gresham Office Furniture Limited,126492," 36,388.32 ", Smart Working Furniture  , SME , Programme ,
UK Statistics Authority,Office for National Statistics,01 March 2019,Non-IT Contractual Payments,"Public, Population and Policy - Operations",Leidos Innovations UK Limited,126493," 2,260,603.78 ", Census Questionaire Management Contract, Large , Programme ,
UK Statistics Authority,Office for National Statistics,01 March 2019,Interviewer Travel and Subsistence,Policy and Communication,Foreign & Commonwealth Office,126499," 49,847.75 ", Overseas Development Staff Cost, Large , Programme ,
UK Statistics Authority,Office for National Statistics,01 March 2019,Consultancy,Digital Services and Technology,SCC,126503," 15,840.00 ", Fixed Asset Acquisition, Large , Programme ,
UK Statistics Authority,Office for National Statistics,01 March 2019,ICT Outsourcing and Maintenance/Support,Digital Services and Technology,SCC,126503," 6,020.23 ", Software Licenses and Support, Large , Programme ,
UK Statistics Authority,Office for National Statistics,01 March 2019,ICT Outsourcing and Maintenance/Support,Digital Services and Technology,SCC,126503," 20,246.82 ", Software Licenses and Support, Large , Programme ,
UK Statistics Authority,Office for National Statistics,01 March 2019,IT (Owned) at Costs - Additions,Digital Services and Technology,SCC,126503," 79,207.03 ", Software Licenses and Support, Large , Programme ,
UK Statistics Authority,Office for National Statistics,01 March 2019,IT Management and Change,Digital Services and Technology,SCC,126503," 4,496.16 ", Software Licenses and Support, Large , Programme ,
UK Statistics Authority,Office for National Statistics,01 March 2019,Postage,Digital Services and Technology,SCC,126503," 2,088.00 ", Outgoing Post , Large , Programme ,
UK Statistics Authority,Office for National Statistics,01 March 2019,Telecommunications,Digital Services and Technology,BT Global Services,126505," 49,105.91 ", BT Cloud Services, Large , Programme ,
UK Statistics Authority,Office for National Statistics,01 March 2019,Telecommunications,Digital Services and Technology,BT Global Services,126506," 25,152.00 ", BT Cloud Services, Large , Programme ,
UK Statistics Authority,Office for National Statistics,01 March 2019,Telecommunications,"Public, Population and Policy - Operations",BT Global Services,126506," 8,263.43 ", BT Cloud Services, Large , Programme ,
UK Statistics Authority,Office for National Statistics,01 March 2019,Hosting,Digital Services and Technology,Equiniti Limited,126508," 47,212.80 ", Cloud Hosting Services, Large , Programme ,
UK Statistics Authority,Office for National Statistics,01 March 2019,ICT Outsourcing and Maintenance/Support,Digital Services and Technology,Equiniti Limited,126508," 1,042.08 ", Information Management Services , Large , Programme ,
UK Statistics Authority,Office for National Statistics,01 March 2019,Consultancy,Digital Services and Technology,Phoenix Software Ltd,126511," 7,200.00 ", Information Management Services , SME , Programme ,
UK Statistics Authority,Office for National Statistics,01 March 2019,IT (Owned) at Costs - Additions,Digital Services and Technology,Phoenix Software Ltd,126511," 33,915.00 ", Information Management Services , SME , Programme ,
UK Statistics Authority,Office for National Statistics,01 March 2019,Higher Education Statistics Collection,"Methods, Data and Research",Higher Education Statistics Agency,126517," 55,579.20 ", Information Management Services, SME , Programme ,
UK Statistics Authority,Office for National Statistics,01 March 2019,End User Software and Hardware,Digital Services and Technology,Computacenter (UK) Limited,126518," 82,653.54 ", Information Management Services , Large , Programme ,
UK Statistics Authority,Office for National Statistics,01 March 2019,ICT Outsourcing and Maintenance/Support,Digital Services and Technology,Computacenter (UK) Limited,126518," 2,843.04 ", Information Management Services , Large , Programme ,
UK Statistics Authority,Office for National Statistics,01 March 2019,IT Management and Change,Digital Services and Technology,Computacenter (UK) Limited,126518," 1,655.22 ", Information Management Services , Large , Programme ,
UK Statistics Authority,Office for National Statistics,01 March 2019,Contractors,Economic Statistics Transformation,Parity Resources Limited,126519, 90.72 , Information Management Services, Large , Programme ,
UK Statistics Authority,Office for National Statistics,01 March 2019,Contractors,"Methods, Data and Research",Parity Resources Limited,126519," 2,306.88 ", Information Management Services, Large , Programme ,
UK Statistics Authority,Office for National Statistics,01 March 2019,Contractors,"Methods, Data and Research",Parity Resources Limited,126519," 12,694.32 ", Information Management Services, Large , Programme ,
UK Statistics Authority,Office for National Statistics,01 March 2019,Contractors,National Accounts and Economic Statistics,Parity Resources Limited,126519," 7,625.52 ", Information Management Services, Large , Programme ,
UK Statistics Authority,Office for National Statistics,01 March 2019,Contractors,"Public, Population and Policy - Operations",Parity Resources Limited,126519," 11,534.40 ", Information Management Services, Large , Programme ,
UK Statistics Authority,Office for National Statistics,01 March 2019,Contractors,"Public, Population and Policy - Transformation",Parity Resources Limited,126519, 97.74 , Information Management Services, Large , Programme ,
UK Statistics Authority,Office for National Statistics,01 March 2019,IT Contractual Services,Digital Services and Technology,Parity Resources Limited,126519," 13,464.77 ", Information Management Services, Large , Programme ,
UK Statistics Authority,Office for National Statistics,01 March 2019,Short-Term Contract and Agency Staff - Full Cost,People and Business Services,Parity Resources Limited,126519, 464.23 , Information Management Services, Large , Programme ,
UK Statistics Authority,Office for National Statistics,01 March 2019,Short-Term Contract and Agency Staff - Full Cost,People and Business Services,Parity Resources Limited,126519," 5,653.24 ", Information Management Services, Large , Programme ,
UK Statistics Authority,Office for National Statistics,01 March 2019,Short-Term Contract and Agency Staff - Full Cost,"Public, Population and Policy - Transformation",Parity Resources Limited,126519," 2,790.14 ", Information Management Services, Large , Programme ,
UK Statistics Authority,Office for National Statistics,01 March 2019,Travel and Subsistence,"Public, Population and Policy - Transformation",Parity Resources Limited,126519, 259.20 , Information Management Services, Large , Programme ,
UK Statistics Authority,Office for National Statistics,01 March 2019,IT Management and Change,Digital Services and Technology,KCOM Group PLC,126521," 85,528.63 ", Information Management Services, SME , Programme ,
UK Statistics Authority,Office for National Statistics,04 March 2019,ICT Outsourcing and Maintenance/Support,Digital Services and Technology,Crown Hosting Data Centres Limited,126535," 14,974.58 ", Information Management Services, SME , Programme ,
UK Statistics Authority,Office for National Statistics,04 March 2019,ICT Outsourcing and Maintenance/Support,Digital Services and Technology,Crown Hosting Data Centres Limited,126535," 16,532.52 ", Information Management Services, SME , Programme ,
UK Statistics Authority,Office for National Statistics,05 March 2019,Surveys,Economic Statistics Transformation,Bank of England,126829," 600,000.00 ", Statistical Data, Large , Programme ,
UK Statistics Authority,Office for National Statistics,06 March 2019,Travel and Subsistence,"Finance, Plannning and Performance",Corporate Travel Management ,126858," 73,089.50 ", Travel and Accommodation Booking Service , SME , Programme ,
UK Statistics Authority,Office for National Statistics,07 March 2019,Oracle Cloud Licences,"Finance, Planning and Performance",SCC,127152," 35,286.50 ", Software Licenses and Support, Large , Programme ,
UK Statistics Authority,Office for National Statistics,07 March 2019,Childcare Services,"Finance, Planning and Performance",Computershare Voucher Services,127155," 40,103.81 ", Childcare Vouchers , Large , Programme ,
UK Statistics Authority,Office for National Statistics,07 March 2019,ICT Outsourcing and Maintenance/Support,Digital Services and Technology,Amazon Web Services Inc,127158," 60,831.16 ", Web Services, Large , Programme ,
UK Statistics Authority,Office for National Statistics,08 March 2019,Marketing and Media,Policy and Communication,Russell Reynolds Associates Limited,127181," 44,567.56 ", Recruitment Services, SME , Programme ,
UK Statistics Authority,Office for National Statistics,08 March 2019,IT Contractual Services,Policy,Methods Business & Digital Technology Ltd,127182," 39,150.00 ", Information Management Services , Large , Programme ,
UK Statistics Authority,Office for National Statistics,08 March 2019,IT Contractual Services,Digital Services and Technology,Cloudwick Technologies UK,127185," 41,160.00 ", Cloud G Nine Services , SME , Programme ,
UK Statistics Authority,Office for National Statistics,12 March 2019,Surveys,National Accounts and Economic Statistics,Kantar Public,127764," 195,689.20 ", Statistical Services, SME , Programme ,
UK Statistics Authority,Office for National Statistics,12 March 2019,Surveys,Public Policy Analysis,Kantar Public,127764," 510,037.19 ", Statistical Services, SME , Programme ,
UK Statistics Authority,Office for National Statistics,12 March 2019,Surveys,Policy and Communication,NatCen Social Research,127765," 133,200.00 ", Statistical Services, Large , Programme ,
UK Statistics Authority,Office for National Statistics,12 March 2019,Incentive Payments,"Public, Population and Policy - Operations",Park Retail Ltd,127766," 9,878.24 ", Social Surveys Incentive Vouchers, Large , Programme ,
UK Statistics Authority,Office for National Statistics,12 March 2019,Performance Related Pay - Voucher Payments,"Public, Population and Policy - Transformation",Park Retail Ltd,127766," 37,000.00 ", Performance Related Pay Vouchers, Large , Programme ,
UK Statistics Authority,Office for National Statistics,12 March 2019,Capital Major Works > 25K,People and Business Services,Paramount Office Interiors Ltd,127770," 54,120.00 ", Major Works Titchfield , SME , Programme ,
UK Statistics Authority,Office for National Statistics,12 March 2019,Procurement Cards,"Finance, Planning and Performance",Royal Bank of Scotland,127771," 96,215.09 ", Multiple Procurement Card Purchases  , Large , Programme ,
UK Statistics Authority,Office for National Statistics,12 March 2019,Stationery,"Finance, Planning and Performance",Royal Bank of Scotland,127771," 7,483.91 "," Multiple Procurement Card Purchases, Stationey", Large , Programme ,
UK Statistics Authority,Office for National Statistics,12 March 2019,Travel and Subsistence,"Finance, Planning and Performance",Royal Bank of Scotland,127771," 46,882.21 "," Multiple Procurement Card Purchases, Car Hire", Large , Programme ,
UK Statistics Authority,Office for National Statistics,12 March 2019,IT (Owned) at Costs - Additions,Digital Services and Technology,Computacenter (UK) Limited,127772," 50,526.24 ", Fixed Asset Acquisition, Large , Programme ,
UK Statistics Authority,Office for National Statistics,12 March 2019,ICT Outsourcing and Maintenance/Support,"Public, Population and Policy - Operations",Totalmobile Ltd,127774," 143,186.40 "," Licenses, Maintenance and Support for Field Management Tool", SME , Programme ,
UK Statistics Authority,Office for National Statistics,12 March 2019,Media Planning,Policy and Communication,Four Communications Group Limited,127775," 67,378.80 ", Census Media Planning , SME , Programme ,
UK Statistics Authority,Office for National Statistics,13 March 2019,Contractors,National Accounts and Economic Statistics,Concept Information Technology Ltd T/A Concept Resourcing,127785," 2,974.36 ", Information Management Services, Large , Programme ,
UK Statistics Authority,Office for National Statistics,13 March 2019,Short-Term Contract and Agency Staff - Full Cost,Economic Statistics Transformation,Concept Information Technology Ltd T/A Concept Resourcing,127785," 3,965.81 ", Information Management Services, Large , Programme ,
UK Statistics Authority,Office for National Statistics,13 March 2019,Short-Term Contract and Agency Staff - Full Cost,National Accounts and Economic Statistics,Concept Information Technology Ltd T/A Concept Resourcing,127785," 2,442.00 ", Information Management Services, Large , Programme ,
UK Statistics Authority,Office for National Statistics,13 March 2019,Short-Term Contract and Agency Staff - Full Cost,National Accounts and Economic Statistics,Concept Information Technology Ltd T/A Concept Resourcing,127785," 6,126.09 ", Information Management Services, Large , Programme ,
UK Statistics Authority,Office for National Statistics,13 March 2019,Short-Term Contract and Agency Staff - Full Cost,National Accounts and Economic Statistics,Concept Information Technology Ltd T/A Concept Resourcing,127785," 3,965.81 ", Information Management Services, Large , Programme ,
UK Statistics Authority,Office for National Statistics,13 March 2019,Short-Term Contract and Agency Staff - Full Cost,National Accounts and Economic Statistics,Concept Information Technology Ltd T/A Concept Resourcing,127785," 2,786.79 ", Information Management Services, Large , Programme ,
UK Statistics Authority,Office for National Statistics,13 March 2019,Short-Term Contract and Agency Staff - Full Cost,National Accounts and Economic Statistics,Concept Information Technology Ltd T/A Concept Resourcing,127785," 3,965.81 ", Information Management Services, Large , Programme ,
UK Statistics Authority,Office for National Statistics,13 March 2019,Short-Term Contract and Agency Staff - Full Cost,National Accounts and Economic Statistics,Concept Information Technology Ltd T/A Concept Resourcing,127785," 3,682.31 ", Information Management Services, Large , Programme ,
UK Statistics Authority,Office for National Statistics,13 March 2019,Travel and Subsistence,"Finance, Planning and Performance",Corporate Travel Management ,127792," 89,488.63 ", Travel and Accommodation Booking Service , SME , Programme ,
UK Statistics Authority,Office for National Statistics,14 March 2019,Contractors Travel and Subsistence,Digital Services and Technology,E Synergy Solutions,128214, 85.80 , Information Management Services , SME , Programme ,
UK Statistics Authority,Office for National Statistics,14 March 2019,IT Contractual Services,Digital Services and Technology,E Synergy Solutions,128214," 26,040.00 ", Information Management Services , SME , Programme ,
UK Statistics Authority,Office for National Statistics,14 March 2019,ICT Outsourcing and Maintenance/Support,Policy and Communication,Esri (UK) Ltd,128217," 44,792.40 ",Cloud Services, SME , Programme ,
UK Statistics Authority,Office for National Statistics,14 March 2019,Contractors,Digital Services and Technology,Parity Resources Limited,128231, 720.00 , Information Management Services, Large , Programme ,
UK Statistics Authority,Office for National Statistics,14 March 2019,Contractors,"Methods, Data and Research",Parity Resources Limited,128231," 13,040.28 ", Information Management Services, Large , Programme ,
UK Statistics Authority,Office for National Statistics,14 March 2019,Contractors,"Public, Population and Policy - Transformation",Parity Resources Limited,128231," 11,278.08 ", Information Management Services, Large , Programme ,
UK Statistics Authority,Office for National Statistics,14 March 2019,ICT Outsourcing and Maintenance/Support,Digital Services and Technology,Other Media Ltd,128245," 105,870.60 ", Information Management Services, Large , Programme ,
UK Statistics Authority,Office for National Statistics,15 March 2019,Contractors,Economic Statistics Transformation,Concept Information Technology Ltd T/A Concept Resourcing,128249," 3,563.87 ", Information Management Services, Large , Programme ,
UK Statistics Authority,Office for National Statistics,15 March 2019,Contractors,Economic Statistics Transformation,Concept Information Technology Ltd T/A Concept Resourcing,128249," 2,974.36 ", Information Management Services, Large , Programme ,
UK Statistics Authority,Office for National Statistics,15 March 2019,Contractors,Economic Statistics Transformation,Concept Information Technology Ltd T/A Concept Resourcing,128249," 3,965.81 ", Information Management Services, Large , Programme ,
UK Statistics Authority,Office for National Statistics,15 March 2019,Contractors,National Accounts and Economic Statistics,Concept Information Technology Ltd T/A Concept Resourcing,128249," 8,640.00 ", Information Management Services, Large , Programme ,
UK Statistics Authority,Office for National Statistics,15 March 2019,IT Contractual Services,Digital Services and Technology,Concept Information Technology Ltd T/A Concept Resourcing,128249," 33,048.00 ", Information Management Services, Large , Programme ,
UK Statistics Authority,Office for National Statistics,15 March 2019,Short-Term Contract and Agency Staff - Full Cost,National Accounts and Economic Statistics,Concept Information Technology Ltd T/A Concept Resourcing,128249," 3,965.81 ", Information Management Services, Large , Programme ,
UK Statistics Authority,Office for National Statistics,15 March 2019,Postage,"Public, Population and Policy - Operations",DHL Parcel Ltd,128251," 58,499.87 ", Outgoing Postage, Large , Programme ,
UK Statistics Authority,Office for National Statistics,15 March 2019,Surveys,"Public, Population and Policy - Operations",NISRA,128254," 107,618.23 ", Statistical Services, Large , Programme ,
UK Statistics Authority,Office for National Statistics,18 March 2019,ICT Outsourcing and Maintenance/Support,Digital Services and Technology,Computacenter (UK) Limited,128263," 171,620.35 ", Information Management Services , Large , Programme ,
UK Statistics Authority,Office for National Statistics,18 March 2019,IT (Owned) at Costs - Additions,Digital Services and Technology,Computacenter (UK) Limited,128263," 225,039.70 ", Information Management Services , Large , Programme ,
UK Statistics Authority,Office for National Statistics,18 March 2019,IT Management and Change,Digital Services and Technology,Computacenter (UK) Limited,128263," 69,024.00 ", Information Management Services , Large , Programme ,
UK Statistics Authority,Office for National Statistics,18 March 2019,Consultancy,"Public, Population and Policy - Transformation",Parity Resources Limited,128265," 12,816.00 ", Information Management Services, Large , Programme ,
UK Statistics Authority,Office for National Statistics,18 March 2019,Contractors,Economic Statistics Transformation,Parity Resources Limited,128265," 6,868.48 ", Information Management Services, Large , Programme ,
UK Statistics Authority,Office for National Statistics,18 March 2019,Contractors,Policy and Communication,Parity Resources Limited,128265," 10,252.80 ", Information Management Services, Large , Programme ,
UK Statistics Authority,Office for National Statistics,18 March 2019,Contractors,"Public, Population and Policy - Transformation",Parity Resources Limited,128265," 40,652.57 ", Information Management Services, Large , Programme ,
UK Statistics Authority,Office for National Statistics,18 March 2019,Contractors,"Public, Population and Policy - Transformation",Parity Resources Limited,128265," 8,458.56 ", Information Management Services, Large , Programme ,
UK Statistics Authority,Office for National Statistics,18 March 2019,Contractors,"Public, Population and Policy - Transformation",Parity Resources Limited,128265," 7,048.80 ", Information Management Services, Large , Programme ,
UK Statistics Authority,Office for National Statistics,18 March 2019,Short-Term Contract and Agency Staff - Full Cost,People and Business Services,Parity Resources Limited,128265," 3,799.30 ", Information Management Services, Large , Programme ,
UK Statistics Authority,Office for National Statistics,18 March 2019,Short-Term Contract and Agency Staff - Full Cost,Public Policy Analysis,Parity Resources Limited,128265," 4,773.89 ", Information Management Services, Large , Programme ,
UK Statistics Authority,Office for National Statistics,18 March 2019,IT Contractual Services,Policy and Communication,Granicus LLC,128268," 45,228.00 ",Annual Subrscription to GovDelivery, SME , Programme ,
UK Statistics Authority,Office for National Statistics,18 March 2019,Training and Development,Economic Statistics Transformation,Cabinet Office,128270," 11,880.00 ", Civil Service Psychometric Testing, Large , Programme ,
UK Statistics Authority,Office for National Statistics,18 March 2019,Training and Development,People and Business Services,Cabinet Office,128270," 11,880.00 ", Civil Service Psychometric Testing, Large , Programme ,
UK Statistics Authority,Office for National Statistics,18 March 2019,Training and Development,People and Business Services,Cabinet Office,128270," 2,604.00 ", Civil Service Psychometric Testing, Large , Programme ,
UK Statistics Authority,Office for National Statistics,18 March 2019,IT Contractual Services,Digital Services and Technology,Mosaic Island,128271," 12,840.00 ", Information Management Services, Large , Programme ,
UK Statistics Authority,Office for National Statistics,18 March 2019,IT Contractual Services,Digital Services and Technology,Mosaic Island,128271," 12,840.00 ", Information Management Services, Large , Programme ,
UK Statistics Authority,Office for National Statistics,18 March 2019,Contractors,"Public, Population and Policy - Operations",Certeco Ltd,128272," 31,200.00 ", Census Infornmation Management Services, Large , Programme ,
UK Statistics Authority,Office for National Statistics,18 March 2019,IT Contractual Services,Digital Services and Technology,Cloudwick Technologies UK,128273," 43,800.00 ", Cloud G Nine Services , SME , Programme ,
UK Statistics Authority,Office for National Statistics,18 March 2019,Training and Development,Digital Services and Technology,Armakuni Ltd,128274," 113,273.72 ", Training , SME , Programme ,
UK Statistics Authority,Office for National Statistics,18 March 2019,Furniture > 5K Per Item,People and Business Services,Gresham Office Furniture Limited,128275," 84,366.18 ", Smart Working Furniture  , SME , Programme ,
UK Statistics Authority,Office for National Statistics,18 March 2019,Furniture > 5K Per Item,"Public, Population and Policy - Operations",Gresham Office Furniture Limited,128275," 71,690.58 ", Smart Working Furniture  , SME , Programme ,
UK Statistics Authority,Office for National Statistics,18 March 2019,Office Furniture,Data Science Campus,Gresham Office Furniture Limited,128275," 4,041.36 ", Smart Working Furniture  , SME , Programme ,
UK Statistics Authority,Office for National Statistics,18 March 2019,Office Furniture,Policy and Communication,Gresham Office Furniture Limited,128275," 15,151.68 ", Smart Working Furniture  , SME , Programme ,
UK Statistics Authority,Office for National Statistics,18 March 2019,Ingres Open Road Business Application,Digital Services and Technology,Cysure Limited,128278," 80,434.67 ", Information Management Services, SME , Programme ,
UK Statistics Authority,Office for National Statistics,18 March 2019,Non-IT Contractual Payments,"Public, Population and Policy - Operations",HH Associates Ltd,128279," 36,000.00 ", Census Print and Post Out Contract, SME , Programme ,
UK Statistics Authority,Office for National Statistics,18 March 2019,Consultancy,Digital Services and Technology,Transputec Ltd,128281, 752.94 , Information Management Services , Large , Programme ,
UK Statistics Authority,Office for National Statistics,18 March 2019,ICT Outsourcing and Maintenance/Support,Digital Services and Technology,Transputec Ltd,128281," 4,217.91 ", Information Management Services , Large , Programme ,
UK Statistics Authority,Office for National Statistics,18 March 2019,IT (Owned) at Costs - Additions,Digital Services and Technology,Transputec Ltd,128281," 31,893.11 ", Information Management Services , Large , Programme ,
UK Statistics Authority,Office for National Statistics,18 March 2019,Hosting,Policy and Communication,Swirrl It Ltd,128287," 3,600.00 ", Information Management Services, SME , Programme ,
UK Statistics Authority,Office for National Statistics,18 March 2019,IT Contractual Services,Policy and Communication,Swirrl It Ltd,128287," 74,124.12 ", Information Management Services, SME , Programme ,
UK Statistics Authority,Office for National Statistics,18 March 2019,ICT Costs - Software,Digital Services and Technology,Automated Intelligence Ltd,128289," 50,688.00 ", Information Management Services , SME , Programme ,
UK Statistics Authority,Office for National Statistics,18 March 2019,IT Contractual Services,Digital Services and Technology,Empiric Solutions Limited,128290," 41,340.00 ", Information Mangement Services, Large , Programme ,
UK Statistics Authority,Office for National Statistics,18 March 2019,Consultancy,People and Business Services,SCC,128293," 35,535.00 ", Software Licenses and Support, Large , Programme ,
UK Statistics Authority,Office for National Statistics,18 March 2019,IT Management and Change,Digital Services and Technology,SCC,128293," 368,303.52 ", Software Licenses and Support, Large , Programme ,
UK Statistics Authority,Office for National Statistics,18 March 2019,Surveys,National Accounts and Economic Statistics,University of Durham,128295," 325,477.20 ", Statistical Services, Large , Programme ,
UK Statistics Authority,Office for National Statistics,18 March 2019,IT (Owned) at Costs - Additions,Digital Services and Technology,Stone Computers,128297," 201,510.00 ", Computer Hardware, Large , Programme ,
UK Statistics Authority,Office for National Statistics,18 March 2019,IT (Owned) at Costs - Additions,Digital Services and Technology,Centerprise International Ltd,128300," 55,112.40 ", Information Management Services , Large , Programme ,
UK Statistics Authority,Office for National Statistics,18 March 2019,Contractors,"Methods, Data and Research",Certes Computing Ltd,128303," 13,450.56 ", Information Management Services , SME , Programme ,
UK Statistics Authority,Office for National Statistics,18 March 2019,Contractors,National Accounts and Economic Statistics,Certes Computing Ltd,128303," 10,216.07 ", Information Management Services , SME , Programme ,
UK Statistics Authority,Office for National Statistics,18 March 2019,Contractors,"Public, Population and Policy - Transformation",Certes Computing Ltd,128303," 28,332.00 ", Information Management Services , SME , Programme ,
UK Statistics Authority,Office for National Statistics,18 March 2019,Capital Major Works > 25K,People and Business Services,Paramount Office Interiors Ltd,128308," 42,925.42 ", Major Works Titchfield , SME , Programme ,
UK Statistics Authority,Office for National Statistics,18 March 2019,Major Works Over 25K,People and Business Services,Paramount Office Interiors Ltd,128308," 76,311.85 ", Major Works Titchfield , SME , Programme ,
UK Statistics Authority,Office for National Statistics,18 March 2019,Electricity,People and Business Services,EDF Energy,30001280," 26,830.64 ", Electricity Charges Titchfield, Large , Programme ,
UK Statistics Authority,Office for National Statistics,18 March 2019,Electricity,People and Business Services,EDF Energy,30001280," 27,858.20 ", Electricity Charges Newport, Large , Programme ,
UK Statistics Authority,Office for National Statistics,19 March 2019,Contractors,National Accounts and Economic Statistics,Mango Solutions,128843," 64,965.00 ", Information Mangement Services, SME , Programme ,
UK Statistics Authority,Office for National Statistics,19 March 2019,Contractors,Policy and Communication,Mango Solutions,128843," 6,435.00 ", Information Mangement Services, SME , Programme ,
UK Statistics Authority,Office for National Statistics,19 March 2019,Fusion Career Development Cloud Services,"Finance, Planning and Performance",SCC,128849," 1,710.54 ", Software Licenses and Support, Large , Programme ,
UK Statistics Authority,Office for National Statistics,19 March 2019,ICT Outsourcing and Maintenance/Support,Digital Services and Technology,SCC,128849," 6,313.84 ", Software Licenses and Support, Large , Programme ,
UK Statistics Authority,Office for National Statistics,19 March 2019,IT Contractual Services,Digital Services and Technology,SCC,128849," 34,692.00 ", Software Licenses and Support, Large , Programme ,
UK Statistics Authority,Office for National Statistics,19 March 2019,1961 Census,"Public, Population and Policy - Operations",University of Salford,128852," 75,840.00 ", Information Management Services, Large , Programme ,
UK Statistics Authority,Office for National Statistics,19 March 2019,Surveys,"Public, Population and Policy - Operations",Burlington Uniforms Ltd,128854," 120,059.28 ",IPS Uniforms, SME , Programme ,
UK Statistics Authority,Office for National Statistics,19 March 2019,Surveys,"Public, Population and Policy - Operations",Burlington Uniforms Ltd,128854," 5,492.68 ",IPS Uniforms, SME , Programme ,
UK Statistics Authority,Office for National Statistics,19 March 2019,ICT Outsourcing and Maintenance/Support,Digital Services and Technology,Insight Direct,128871," 472,294.56 ", Information Management Services , Large , Programme ,
UK Statistics Authority,Office for National Statistics,19 March 2019,IT (Owned) at Costs - Additions,Digital Services and Technology,Insight Direct,128871," 82,620.00 ", Information Management Services , Large , Programme ,
UK Statistics Authority,Office for National Statistics,19 March 2019,IT Contractual Services,Digital Services and Technology,CTS (Cloud Technology Solutions Ltd),128878," 180,000.00 ", Information Management Services , SME , Programme ,
UK Statistics Authority,Office for National Statistics,20 March 2019,Incentive Payments,"Public, Population and Policy - Operations",Park Retail Ltd,128882," 15,359.35 ", Social Surveys Incentive Vouchers, Large , Programme ,
UK Statistics Authority,Office for National Statistics,20 March 2019,Incentive Payments,"Public, Population and Policy - Operations",Park Retail Ltd,128882," 10,164.12 ", Social Surveys Incentive Vouchers, Large , Programme ,
UK Statistics Authority,Office for National Statistics,20 March 2019,Performance Related Pay - Voucher Payments,ONS Corporate Funds,Park Retail Ltd,128882," 9,402.61 ", Performance Related Pay Vouchers, Large , Programme ,
UK Statistics Authority,Office for National Statistics,20 March 2019,Facilities Management Contract Payments,"Finance, Planning and Performance",Vinci Construction UK Limited,128884," 171,117.12 ", Facility Management Services, Large , Programme ,
UK Statistics Authority,Office for National Statistics,20 March 2019,Telecommunications,Digital Services and Technology,BT Global Services,128889," 27,987.30 ", BT Cloud Services, Large , Programme ,
UK Statistics Authority,Office for National Statistics,20 March 2019,Telecommunications,"Public, Population and Policy - Operations",BT Global Services,128889," 5,995.32 ", BT Cloud Services, Large , Programme ,
UK Statistics Authority,Office for National Statistics,20 March 2019,Travel and Subsistence,"Finance, Planning and Performance",Corporate Travel Management ,128893," 85,416.71 ", Travel and Accommodation Booking Service , SME , Programme ,
UK Statistics Authority,Office for National Statistics,20 March 2019,Hosting,Digital Services and Technology,Equiniti Limited,128894," 47,212.80 ", Information Management Services , Large , Programme ,
UK Statistics Authority,Office for National Statistics,20 March 2019,Accommodation and Building Management,"Public, Population and Policy - Operations",London Borough of Hillingdon,128901," 32,307.80 ", IPS Heathrow Presence Charges , Large , Programme ,
UK Statistics Authority,Office for National Statistics,21 March 2019,IT Contractual Services,Digital Services and Technology,SCC,129241," 321,349.92 ", Software Licenses and Support, Large , Programme ,
UK Statistics Authority,Office for National Statistics,21 March 2019,ONS Virtual Microdata Laboratory - Walled Garden Move,Digital Services and Technology,Equiniti Limited,129244," 34,680.00 ", Information Management Services , Large , Programme ,
UK Statistics Authority,Office for National Statistics,21 March 2019,Consultancy,"Public, Population and Policy - Transformation",Bloom Procurement Services Ltd,129253," 824,552.40 ", Census Service Integration Contract, Large , Programme ,
UK Statistics Authority,Office for National Statistics,22 March 2019,Surveys,Public Policy Analysis,Kantar Public,129265," 513,364.39 ", Statistical Services, SME , Programme ,
UK Statistics Authority,Office for National Statistics,22 March 2019,IT Management and Change,Digital Services and Technology,SCC,129268," 298,527.66 ", Software Licenses and Support, Large , Programme ,
UK Statistics Authority,Office for National Statistics,25 March 2019,Telecommunications,Digital Services and Technology,BT Global Services,129586," 25,152.00 ", BT Cloud Services, Large ,Programme,
UK Statistics Authority,Office for National Statistics,25 March 2019,Telecommunications,"Public, Population and Policy - Operations",BT Global Services,129586," 7,885.40 ", BT Cloud Services, Large ,Programme,
UK Statistics Authority,Office for National Statistics,25 March 2019,IT (Owned) at Costs - Additions,Digital Services and Technology,Centerprise International Ltd,129593," 451,283.11 ", Information Management Services , Large , Programme ,
UK Statistics Authority,Office for National Statistics,25 March 2019,IT Contractual Services,Digital Services and Technology,Methods Business & Digital Technology Ltd,129595," 63,450.00 ", Information Management Services , Large , Programme ,
UK Statistics Authority,Office for National Statistics,25 March 2019,IT Contractual Services,Digital Services and Technology,QA Ltd,129598," 238,957.50 ", Information Management Services, Large ,Programme,
UK Statistics Authority,Office for National Statistics,25 March 2019,ICT Outsourcing and Maintenance/Support,Digital Services and Technology,Computacenter (UK) Limited,129602," 4,784.64 ", Information Management Services , Large , Programme ,
UK Statistics Authority,Office for National Statistics,25 March 2019,IT (Owned) at Costs - Additions,Digital Services and Technology,Computacenter (UK) Limited,129602," 152,327.51 ", Fixed Asset Acquisition, Large , Programme ,
UK Statistics Authority,Office for National Statistics,25 March 2019,Fast Stream Costs,People and Business Services,Cabinet Office,129605, 276.00 , Civil Service Fast Stream Recruitment , Large , Programme ,
UK Statistics Authority,Office for National Statistics,25 March 2019,Fast Stream Costs,"Public, Population and Policy - Transformation",Cabinet Office,129605," 56,192.80 ", Civil Service Fast Stream Recruitment , Large , Programme ,
UK Statistics Authority,Office for National Statistics,25 March 2019,Census Rehearsal,Policy and Communication,Four Communications Group Limited,129609," 35,589.60 ", Census Publicity, SME , Programme ,
UK Statistics Authority,Office for National Statistics,25 March 2019,Council Tax,"Methods, Data and Research",Royal Borough of Kensington and Chelsea,129613," 139,675.00 ", Statistical Data , SME , Programme ,
UK Statistics Authority,Office for National Statistics,26 March 2019,ICT Outsourcing and Maintenance/Support,Digital Services and Technology,Crown Hosting Data Centres Limited,129946," 14,951.77 ", Information Management Services , SME ,Programme,
UK Statistics Authority,Office for National Statistics,26 March 2019,ICT Outsourcing and Maintenance/Support,Digital Services and Technology,Crown Hosting Data Centres Limited,129946, 860.00 , Information Management Services , SME ,Programme,
UK Statistics Authority,Office for National Statistics,26 March 2019,ICT Outsourcing and Maintenance/Support,Digital Services and Technology,Crown Hosting Data Centres Limited,129946," 14,281.42 ", Information Management Services , SME ,Programme,
UK Statistics Authority,Office for National Statistics,26 March 2019,Telecommunications,Digital Services and Technology,Crown Hosting Data Centres Limited,129946," 1,720.01 ", Information Management Services , SME ,Programme,
UK Statistics Authority,Office for National Statistics,26 March 2019,ICT Outsourcing and Maintenance/Support,Digital Services and Technology,E Synergy Solutions,129948," 14,400.00 ", Information Management Services , SME ,Programme,
UK Statistics Authority,Office for National Statistics,26 March 2019,IT Contractual Services,Digital Services and Technology,E Synergy Solutions,129948," 1,344.00 ", Information Management Services , SME ,Programme,
UK Statistics Authority,Office for National Statistics,26 March 2019,IT Contractual Services,Digital Services and Technology,E Synergy Solutions,129948," 15,600.00 ", Information Management Services , SME ,Programme,
UK Statistics Authority,Office for National Statistics,26 March 2019,IT Contractual Services,Digital Services and Technology,E Synergy Solutions,129948," 48,600.00 ", Information Management Services , SME ,Programme,
UK Statistics Authority,Office for National Statistics,26 March 2019,IT Contractual Services,Digital Services and Technology,E Synergy Solutions,129948," 17,520.00 ", Information Management Services , SME ,Programme,
UK Statistics Authority,Office for National Statistics,26 March 2019,Surveys,"Public, Population and Policy - Operations",NatCen Social Research,129949," 244,606.90 ", Statistical Services, Large ,Programme,
UK Statistics Authority,Office for National Statistics,26 March 2019,Capital Major Works > 25K,People and Business Services,Vinci Construction UK Limited,129951," 570,000.00 ",Christchurch Major Works, Large ,Programme,
UK Statistics Authority,Office for National Statistics,26 March 2019,Major Works Over 25K,People and Business Services,Vinci Construction UK Limited,129951," 1,740.00 ",Christchurch Major Works, Large ,Programme,
UK Statistics Authority,Office for National Statistics,26 March 2019,Major Works Over 25K,People and Business Services,Vinci Construction UK Limited,129951," 29,851.20 ",Newport Major Works, Large ,Programme,
UK Statistics Authority,Office for National Statistics,26 March 2019,Major Works Over 25K,People and Business Services,Vinci Construction UK Limited,129951," 28,222.80 ",Newport Major Works, Large ,Programme,
UK Statistics Authority,Office for National Statistics,26 March 2019,Rent Payable,People and Business Services,Eaton Aerospace Limited,129965," 27,488.40 ",Rent for Titchfield Parking Space, Large ,Programme,
UK Statistics Authority,Office for National Statistics,26 March 2019,Capital Major Works > 25K,People and Business Services,Paramount Office Interiors Ltd,129966," 23,195.40 ",Newport Major Works, SME ,Programme,
UK Statistics Authority,Office for National Statistics,26 March 2019,Capital Major Works > 25K,People and Business Services,Paramount Office Interiors Ltd,129966," 33,971.45 ",Newport Major Works, SME ,Programme,
UK Statistics Authority,Office for National Statistics,26 March 2019,Capital Major Works > 25K,People and Business Services,Paramount Office Interiors Ltd,129966," 18,523.27 ",Major Works Titchfield, SME ,Programme,
UK Statistics Authority,Office for National Statistics,26 March 2019,Major Works Over 25K,People and Business Services,Paramount Office Interiors Ltd,129966," 33,429.24 ", Major Works Newport, SME ,Programme,
UK Statistics Authority,Office for National Statistics,26 March 2019,Major Works Over 25K,People and Business Services,Paramount Office Interiors Ltd,129966," 79,266.72 ", Major Works Newport, SME ,Programme,
UK Statistics Authority,Office for National Statistics,26 March 2019,Major Works Over 25K,People and Business Services,Paramount Office Interiors Ltd,129966," 32,930.27 ", Major Works Titchfield , SME ,Programme,
UK Statistics Authority,Office for National Statistics,26 March 2019,IT (Owned) at Costs - Additions,Digital Services and Technology,Bechtle Direct Ltd,129967," 160,108.80 ", Information Management Services , SME ,Programme,
UK Statistics Authority,Office for National Statistics,26 March 2019,IT Contractual Services,Digital Services and Technology,CTS (Cloud Technology Solutions Ltd),129971," 92,016.00 ", Information Management Services , SME ,Programme,
UK Statistics Authority,Office for National Statistics,27 March 2019,Surveys,National Accounts and Economic Statistics,Kantar Public,129975," 1,749.88 ", Statistical Services, SME ,Programme,
UK Statistics Authority,Office for National Statistics,27 March 2019,Surveys,National Accounts and Economic Statistics,Kantar Public,129975," 185,744.04 ", Statistical Services, SME ,Programme,
UK Statistics Authority,Office for National Statistics,27 March 2019,Contractors,Digital Services and Technology,Concept Information Technology Ltd T/A Concept Resourcing,129982," 13,123.80 ", Information Management Services , Large ,Programme,
UK Statistics Authority,Office for National Statistics,27 March 2019,IT Contractual Services,Digital Services and Technology,Concept Information Technology Ltd T/A Concept Resourcing,129982," 1,908.00 ", Information Management Services , Large ,Programme,
UK Statistics Authority,Office for National Statistics,27 March 2019,IT Contractual Services,Digital Services and Technology,Concept Information Technology Ltd T/A Concept Resourcing,129982," 10,176.00 ", Information Management Services , Large ,Programme,
UK Statistics Authority,Office for National Statistics,27 March 2019,IT Contractual Services,Digital Services and Technology,Concept Information Technology Ltd T/A Concept Resourcing,129982," 12,000.00 ", Information Management Services , Large ,Programme,
UK Statistics Authority,Office for National Statistics,27 March 2019,ICT Outsourcing and Maintenance/Support,Digital Services and Technology,SCC,129985," 62,172.63 ", Software Licenses and Support, Large ,Programme,
UK Statistics Authority,Office for National Statistics,27 March 2019,ICT Outsourcing and Maintenance/Support,Digital Services and Technology,SCC,129985," 26,132.38 ", Software Licenses and Support, Large ,Programme,
UK Statistics Authority,Office for National Statistics,27 March 2019,IT Management and Change,Digital Services and Technology,Parity Resources Limited,129985," 12,393.50 ", Information Management Services, Large ,Programme,
UK Statistics Authority,Office for National Statistics,27 March 2019,Oracle Cloud Licences,"Finance, Planning and Performance",SCC,129985," 11,762.16 ", Software Licenses and Support, Large ,Programme,
UK Statistics Authority,Office for National Statistics,27 March 2019,Telecommunications,Digital Services and Technology,BT Global Services,129986," 42,495.55 ", BT Cloud Services, Large ,Programme,
UK Statistics Authority,Office for National Statistics,27 March 2019,Travel and Subsistence,"Finance, Planning and Performance",Corporate Travel Management ,129989," 84,415.27 ", Travel and Accommodation Booking Service , SME ,Programme,
UK Statistics Authority,Office for National Statistics,27 March 2019,Consultancy,Economic Statistics Transformation,NIESR,129994," 45,420.36 ", Information Management Services , SME ,Programme,
UK Statistics Authority,Office for National Statistics,27 March 2019,Contractors,Digital Services and Technology,LA International,129996," 13,903.20 ", Information Management Services , SME ,Programme,
UK Statistics Authority,Office for National Statistics,27 March 2019,Contractors,Digital Services and Technology,LA International,129996," 41,947.32 ", Information Management Services , SME ,Programme,
UK Statistics Authority,Office for National Statistics,27 March 2019,Contractors,Digital Services and Technology,LA International,129996," 9,688.42 ", Information Management Services , SME ,Programme,
UK Statistics Authority,Office for National Statistics,27 March 2019,Contractors,Digital Services and Technology,LA International,129996," 14,096.88 ", Information Management Services , SME ,Programme,
UK Statistics Authority,Office for National Statistics,27 March 2019,Contractors,"Methods, Data and Research",LA International,129996," 9,739.70 ", Information Management Services , SME ,Programme,
UK Statistics Authority,Office for National Statistics,27 March 2019,Contractors,National Accounts and Economic Statistics,LA International,129996," 8,650.44 ", Information Management Services , SME ,Programme,
UK Statistics Authority,Office for National Statistics,27 March 2019,Contractors,"Public, Population and Policy - Transformation",LA International,129996," 3,524.22 ", Information Management Services , SME ,Programme,
UK Statistics Authority,Office for National Statistics,27 March 2019,Contractors,"Public, Population and Policy - Transformation",LA International,129996," 3,524.22 ", Information Management Services , SME ,Programme,
UK Statistics Authority,Office for National Statistics,27 March 2019,IT (Owned) at Costs - Additions,Digital Services and Technology,Insight Direct,129999," 328,734.72 ", Information Management Services , Large ,Programme,
UK Statistics Authority,Office for National Statistics,27 March 2019,Contractors,Digital Services and Technology,Parity Resources Limited,130001," 14,174.40 ", Information Management Services, Large ,Programme,
UK Statistics Authority,Office for National Statistics,27 March 2019,Contractors,"Methods, Data and Research",Parity Resources Limited,130001," 8,074.08 ", Information Management Services, Large ,Programme,
UK Statistics Authority,Office for National Statistics,27 March 2019,Contractors,National Accounts and Economic Statistics,Parity Resources Limited,130001," 8,971.20 ", Information Management Services, Large ,Programme,
UK Statistics Authority,Office for National Statistics,27 March 2019,Exp - Purchase Of Goods/Services - Contractors,Digital Services and Technology,Parity Resources Limited,130001," 7,874.64 ", Information Management Services, Large ,Programme,
UK Statistics Authority,Office for National Statistics,27 March 2019,Exp - Purchase Of Goods/Services - Contractors,Digital Services and Technology,Parity Resources Limited,130001," 42,981.98 ", Information Management Services, Large ,Programme,
UK Statistics Authority,Office for National Statistics,27 March 2019,Exp - Purchase Of Goods/Services - Contractors,Digital Services and Technology,Parity Resources Limited,130001," 7,260.00 ", Information Management Services, Large ,Programme,
UK Statistics Authority,Office for National Statistics,27 March 2019,Exp - Purchase Of Goods/Services - Contractors,Digital Services and Technology,Parity Resources Limited,130001," 15,699.60 ", Information Management Services, Large ,Programme,
UK Statistics Authority,Office for National Statistics,27 March 2019,IT Contractual Services,Digital Services and Technology,Parity Resources Limited,130001," 2,306.88 ", Information Management Services, Large ,Programme,
UK Statistics Authority,Office for National Statistics,27 March 2019,IT Contractual Services,Digital Services and Technology,Parity Resources Limited,130001," 9,227.52 ", Information Management Services, Large ,Programme,
UK Statistics Authority,Office for National Statistics,27 March 2019,ICT Outsourcing and Maintenance/Support,Digital Services and Technology,ServiceNow,130002," 23,911.58 ", Licences and Support, Large ,Programme,
UK Statistics Authority,Office for National Statistics,27 March 2019,Training and Development,Digital Services and Technology,ServiceNow,130002," 4,550.40 ", Licences and Support, Large ,Programme,
UK Statistics Authority,Office for National Statistics,27 March 2019,Consultancy,Digital Services and Technology,Actian Europe Limited,130008," 29,040.00 ", Information Management Services , SME ,Programme,
UK Statistics Authority,Office for National Statistics,27 March 2019,Mass Media and Information Provision,Economic Statistics Transformation,Thomson Reuters,130011," 240,000.00 ", Information Management Services , Large ,Programme,
UK Statistics Authority,Office for National Statistics,29 March 2019,Fast Stream Costs,Data Science Campus,Cabinet Office,30001300," 41,204.90 ", Civil Service Recruitment Services , Large ,Programme,
UK Statistics Authority,Office for National Statistics,29 March 2019,Fast Stream Costs,Digital Services and Technology,Cabinet Office,30001300," 9,727.89 ", Civil Service Recruitment Services , Large ,Programme,
UK Statistics Authority,Office for National Statistics,29 March 2019,Fast Stream Costs,Digital Services and Technology,Cabinet Office,30001300," 5,306.12 ", Civil Service Recruitment Services , Large ,Programme,
UK Statistics Authority,Office for National Statistics,29 March 2019,Fast Stream Costs,Digital Services and Technology,Cabinet Office,30001300," 10,612.24 ", Civil Service Recruitment Services , Large ,Programme,
UK Statistics Authority,Office for National Statistics,29 March 2019,Fast Stream Costs,Economic Statistics Transformation,Cabinet Office,30001300," 35,898.78 ", Civil Service Recruitment Services , Large ,Programme,
UK Statistics Authority,Office for National Statistics,29 March 2019,Fast Stream Costs,"Methods, Data and Research",Cabinet Office,30001300," 35,898.78 ", Civil Service Recruitment Services , Large ,Programme,
UK Statistics Authority,Office for National Statistics,29 March 2019,Fast Stream Costs,"Methods, Data and Research",Cabinet Office,30001300," 25,409.36 ", Civil Service Recruitment Services , Large ,Programme,
UK Statistics Authority,Office for National Statistics,29 March 2019,Fast Stream Costs,"Methods, Data and Research",Cabinet Office,30001300," 66,491.44 ", Civil Service Recruitment Services , Large ,Programme,
UK Statistics Authority,Office for National Statistics,29 March 2019,Fast Stream Costs,National Accounts and Economic Statistics,Cabinet Office,30001300," 35,898.78 ", Civil Service Recruitment Services , Large ,Programme,
UK Statistics Authority,Office for National Statistics,29 March 2019,Fast Stream Costs,Policy and Communication,Cabinet Office,30001300," 5,306.11 ", Civil Service Recruitment Services , Large ,Programme,
UK Statistics Authority,Office for National Statistics,29 March 2019,Fast Stream Costs,Public Policy Analysis,Cabinet Office,30001300," 35,898.78 ", Civil Service Recruitment Services , Large ,Programme,
UK Statistics Authority,Office for National Statistics,29 March 2019,Fast Stream Costs,Public Policy Analysis,Cabinet Office,30001300," 35,898.78 ", Civil Service Recruitment Services , Large ,Programme,
UK Statistics Authority,Office for National Statistics,29 March 2019,Fast Stream Costs,Public Policy Analysis,Cabinet Office,30001300," 97,206.92 ", Civil Service Recruitment Services , Large ,Programme,
UK Statistics Authority,Office for National Statistics,29 March 2019,Fast Stream Costs,Public Policy Analysis,Cabinet Office,30001300," 4,421.77 ", Civil Service Recruitment Services , Large ,Programme,
UK Statistics Authority,Office for National Statistics,29 March 2019,Fast Stream Costs,Public Policy Analysis,Cabinet Office,30001300," 35,898.78 ", Civil Service Recruitment Services , Large ,Programme,
UK Statistics Authority,Office for National Statistics,29 March 2019,Fast Stream Costs,Public Policy Analysis,Cabinet Office,30001300," 35,898.78 ", Civil Service Recruitment Services , Large ,Programme,
UK Statistics Authority,Office for National Statistics,29 March 2019,Fast Stream Costs,"Public, Population and Policy - Transformation",Cabinet Office,30001300," 35,898.78 ", Civil Service Recruitment Services , Large ,Programme,
UK Statistics Authority,Office for National Statistics,29 March 2019,Fast Stream Costs,"Public, Population and Policy - Transformation",Cabinet Office,30001300," 86,717.51 ", Civil Service Recruitment Services , Large ,Programme,
UK Statistics Authority,Office for National Statistics,29 March 2019,Fast Stream Costs,"Public, Population and Policy - Transformation",Cabinet Office,30001300," 4,421.77 ", Civil Service Recruitment Services , Large ,Programme,
UK Statistics Authority,Office for National Statistics,29 March 2019,Fast Stream Costs,"Public, Population and Policy - Transformation",Cabinet Office,30001300," 65,729.91 ", Civil Service Recruitment Services , Large ,Programme,
UK Statistics Authority,Office for National Statistics,29 March 2019,Fast Stream Costs,"Public, Population and Policy - Transformation",Cabinet Office,30001300," 5,306.12 ", Civil Service Recruitment Services , Large ,Programme,
UK Statistics Authority,Office for National Statistics,29 March 2019,IT Contractual Services,Digital Services and Technology,QA Ltd,30001301," 169,200.00 ", Information Management Services, Large ,Programme,
UK Statistics Authority,Office for National Statistics,29 March 2019,Non-IT Contractual Payments,"Public, Population and Policy - Operations",Adecco UK Limited,30001302," 328,500.00 ","Census Recruitment, Training and Payroll Services", Large ,Programme,
UK Statistics Authority,Office for National Statistics,29 March 2019,ICT Outsourcing and Maintenance/Support,Digital Services and Technology,Phoenix Software Ltd,30001303," 425,683.08 ",Software Licenses and Support, SME ,Programme,
UK Statistics Authority,Office for National Statistics,29 March 2019,Business Rates,People and Business Services,Newport City Council,30001304," 1,009,920.00 ",Newport Rates for 2019/20, Large ,Programme,
UK Statistics Authority,Office for National Statistics,29 March 2019,Business Rates,People and Business Services,Fareham Borough Council,30001305," 405,720.00 ",Titchfield Rates for 2019/20, Large ,Programme,
Grand Total,,,,,,,,,,
